[Event "Early-Titled-Tuesday-Blitz-February-06-2024"]
[Site "Chess.com"]
[Date "2024.02.06"]
[Round "10"]
[White "Payyappat"]
[Black "bescmelasti"]
[Result "1-0"]
[WhiteElo "2521"]
[BlackElo "2676"]
[TimeControl "180+1"]
[EndTime "9:55:38 PST"]
[Termination "Payyappat won by resignation"]

1. e4 {[%clk 0:03:00.9]} 1... e5 {[%clk 0:02:58.6]} 2. Nf3 {[%clk 0:02:59.4]}
2... Nc6 {[%clk 0:02:58.8]} 3. Bc4 {[%clk 0:02:57.4]} 3... Bc5 {[%clk
0:02:57.5]} 4. c3 {[%clk 0:02:57.6]} 4... Nf6 {[%clk 0:02:57.5]} 5. d4 {[%clk
0:02:56.6]} 5... exd4 {[%clk 0:02:58.4]} 6. e5 {[%clk 0:02:55.7]} 6... d5 {[%clk
0:02:58.9]} 7. Bb5 {[%clk 0:02:51.2]} 7... Ne4 {[%clk 0:02:59.2]} 8. cxd4 {[%clk
0:02:50.5]} 8... Bb6 {[%clk 0:02:59.3]} 9. Nc3 {[%clk 0:02:47.9]} 9... O-O
{[%clk 0:02:59.3]} 10. Be3 {[%clk 0:02:47.1]} 10... Bg4 {[%clk 0:02:57.8]} 11.
h3 {[%clk 0:02:46.5]} 11... Bh5 {[%clk 0:02:57.6]} 12. Qc2 {[%clk 0:02:38.5]}
12... Bg6 {[%clk 0:02:55.9]} 13. Qb3 {[%clk 0:02:25.2]} 13... Ne7 {[%clk
0:02:53.7]} 14. O-O {[%clk 0:02:22.7]} 14... c6 {[%clk 0:02:50.4]} 15. Bd3
{[%clk 0:02:21.2]} 15... Nd2 {[%clk 0:02:50.4]} 16. Nxd2 {[%clk 0:02:15.3]}
16... Bxd3 {[%clk 0:02:50.2]} 17. Rfd1 {[%clk 0:02:07.2]} 17... Bg6 {[%clk
0:02:41.3]} 18. Na4 {[%clk 0:01:59.6]} 18... f6 {[%clk 0:02:38.4]} 19. f4 {[%clk
0:01:55.4]} 19... Nf5 {[%clk 0:02:36.3]} 20. Nxb6 {[%clk 0:01:51.3]} 20... Qxb6
{[%clk 0:02:31.6]} 21. Bf2 {[%clk 0:01:46.5]} 21... fxe5 {[%clk 0:02:12.9]} 22.
dxe5 {[%clk 0:01:40.4]} 22... Qxb3 {[%clk 0:02:06]} 23. axb3 {[%clk 0:01:38.7]}
23... b6 {[%clk 0:02:00.4]} 24. Nf3 {[%clk 0:01:33.7]} 24... Ne7 {[%clk
0:01:55.9]} 25. g3 {[%clk 0:01:28.1]} 25... c5 {[%clk 0:01:47.8]} 26. b4 {[%clk
0:01:14.5]} 26... d4 {[%clk 0:01:08.5]} 27. bxc5 {[%clk 0:01:09.6]} 27... bxc5
{[%clk 0:01:09.4]} 28. Rdc1 {[%clk 0:01:03.3]} 28... Rfc8 {[%clk 0:01:05.1]} 29.
Ra5 {[%clk 0:01:01.5]} 29... Rab8 {[%clk 0:00:54.7]} 30. Rxa7 {[%clk 0:00:30.7]}
30... Nc6 {[%clk 0:00:43.1]} 31. Ra6 {[%clk 0:00:16.5]} 31... Nb4 {[%clk
0:00:42.3]} 32. Ra5 {[%clk 0:00:09.1]} 32... Nd3 {[%clk 0:00:42.6]} 33. Rc2
{[%clk 0:00:07.8]} 33... Rxb2 {[%clk 0:00:39.6]} 34. Rxb2 {[%clk 0:00:07.9]}
34... Nxb2 {[%clk 0:00:40.5]} 35. g4 {[%clk 0:00:08.2]} 35... Be4 {[%clk
0:00:40]} 36. Nd2 {[%clk 0:00:08.4]} 36... Ba8 {[%clk 0:00:31.6]} 37. f5 {[%clk
0:00:08.5]} 37... Nd3 {[%clk 0:00:29]} 38. e6 {[%clk 0:00:08.6]} 38... Nxf2
{[%clk 0:00:27.5]} 39. Kxf2 {[%clk 0:00:09.5]} 39... c4 {[%clk 0:00:28.2]} 40.
Nxc4 {[%clk 0:00:09.1]} 40... g6 {[%clk 0:00:25.5]} 41. Nb6 {[%clk 0:00:07.6]}
41... Rf8 {[%clk 0:00:18.5]} 42. Rxa8 {[%clk 0:00:07]} 42... gxf5 {[%clk
0:00:19]} 43. Rxf8+ {[%clk 0:00:06.2]} 43... Kxf8 {[%clk 0:00:19.9]} 44. gxf5
{[%clk 0:00:07]} 44... Ke7 {[%clk 0:00:19.5]} 45. Ke2 {[%clk 0:00:07.2]} 45...
Kf6 {[%clk 0:00:20.4]} 46. Kd3 {[%clk 0:00:07.4]} 1-0

[Event "Early-Titled-Tuesday-Blitz-February-06-2024"]
[Site "Chess.com"]
[Date "2024.02.06"]
[Round "10"]
[White "wyharga"]
[Black "Nuvas"]
[Result "0-1"]
[WhiteElo "2585"]
[BlackElo "2787"]
[TimeControl "180+1"]
[EndTime "9:55:39 PST"]
[Termination "Nuvas won by resignation"]

1. e4 {[%clk 0:03:00.9]} 1... e5 {[%clk 0:03:00.2]} 2. Nf3 {[%clk 0:03:00.3]}
2... Nc6 {[%clk 0:03:00.8]} 3. Bc4 {[%clk 0:03:00.2]} 3... Nf6 {[%clk
0:03:00.8]} 4. d3 {[%clk 0:03:00.1]} 4... d5 {[%clk 0:03:01.4]} 5. exd5 {[%clk
0:02:59.8]} 5... Nxd5 {[%clk 0:03:02.1]} 6. O-O {[%clk 0:02:59.9]} 6... Nb6
{[%clk 0:03:02.5]} 7. Bb3 {[%clk 0:02:56.7]} 7... Bg4 {[%clk 0:03:02.4]} 8. h3
{[%clk 0:02:55.1]} 8... Bh5 {[%clk 0:03:01.1]} 9. Re1 {[%clk 0:02:53.8]} 9...
Qe7 {[%clk 0:03:00.4]} 10. Be3 {[%clk 0:02:42.6]} 10... O-O-O {[%clk 0:02:57.5]}
11. Nbd2 {[%clk 0:02:43.1]} 11... f6 {[%clk 0:02:50.9]} 12. Qe2 {[%clk
0:02:39.2]} 12... Qd7 {[%clk 0:02:40.6]} 13. Qf1 {[%clk 0:02:37.1]} 13... Nd5
{[%clk 0:02:36.3]} 14. a3 {[%clk 0:02:24.9]} 14... Nxe3 {[%clk 0:02:33.7]} 15.
fxe3 {[%clk 0:02:23.4]} 15... Bc5 {[%clk 0:02:33.2]} 16. Kh1 {[%clk 0:02:22.1]}
16... Rhe8 {[%clk 0:02:23.2]} 17. Ba4 {[%clk 0:02:20.7]} 17... a6 {[%clk
0:02:17.9]} 18. b4 {[%clk 0:02:19.8]} 18... Ba7 {[%clk 0:02:15.6]} 19. b5 {[%clk
0:02:18]} 19... axb5 {[%clk 0:02:15.4]} 20. Bxb5 {[%clk 0:02:17.8]} 20... f5
{[%clk 0:02:11.2]} 21. Nc4 {[%clk 0:02:09.4]} 21... Qd5 {[%clk 0:01:41.6]} 22.
Bxc6 {[%clk 0:02:05.5]} 22... bxc6 {[%clk 0:01:41.8]} 23. e4 {[%clk 0:02:00.7]}
23... fxe4 {[%clk 0:01:41.6]} 24. dxe4 {[%clk 0:01:56.6]} 24... Qc5 {[%clk
0:01:41.7]} 25. Ncxe5 {[%clk 0:01:44.5]} 25... Kb7 {[%clk 0:01:19.7]} 26. Rab1+
{[%clk 0:01:40.6]} 26... Bb6 {[%clk 0:01:17.8]} 27. Nd3 {[%clk 0:01:34.4]} 27...
Qxc2 {[%clk 0:01:09.3]} 28. Nb4 {[%clk 0:01:34]} 28... Qa4 {[%clk 0:01:09.9]}
29. Nh4 {[%clk 0:01:17.8]} 29... Rd4 {[%clk 0:00:57.2]} 30. Nf5 {[%clk
0:01:16.2]} 30... Rdxe4 {[%clk 0:00:55.7]} 31. Rxe4 {[%clk 0:01:15.3]} 31...
Rxe4 {[%clk 0:00:56.6]} 32. Nxg7 {[%clk 0:01:11.6]} 32... Bg6 {[%clk 0:00:56.8]}
33. Nd3 {[%clk 0:01:02.1]} 33... Qxa3 {[%clk 0:00:50]} 34. Ra1 {[%clk
0:00:53.3]} 34... Qxd3 {[%clk 0:00:22.7]} 35. Qxd3 {[%clk 0:00:52.6]} 35... Re1+
{[%clk 0:00:23.1]} 36. Rxe1 {[%clk 0:00:52.8]} 36... Bxd3 {[%clk 0:00:23.7]} 37.
Ne6 {[%clk 0:00:48]} 37... c5 {[%clk 0:00:22.8]} 38. Nf4 {[%clk 0:00:48.1]}
38... Bb5 {[%clk 0:00:17.6]} 39. Nd5 {[%clk 0:00:40.8]} 39... c4 {[%clk
0:00:15.5]} 40. Kh2 {[%clk 0:00:35.3]} 40... Kc6 {[%clk 0:00:15.5]} 41. Ne7+
{[%clk 0:00:31.8]} 41... Kc5 {[%clk 0:00:15.3]} 42. g4 {[%clk 0:00:32.4]} 42...
c3 {[%clk 0:00:15.4]} 43. Rc1 {[%clk 0:00:30.6]} 43... Kc4 {[%clk 0:00:14.3]}
44. g5 {[%clk 0:00:29.6]} 44... Be3 {[%clk 0:00:14.1]} 45. Re1 {[%clk
0:00:27.6]} 45... Bxg5 {[%clk 0:00:13.6]} 46. Nf5 {[%clk 0:00:26.8]} 46... c2
{[%clk 0:00:13.2]} 47. h4 {[%clk 0:00:27.4]} 47... c1=Q {[%clk 0:00:13.2]} 48.
Rxc1+ {[%clk 0:00:28.1]} 48... Bxc1 {[%clk 0:00:13.9]} 49. Kg3 {[%clk
0:00:28.6]} 49... c5 {[%clk 0:00:13.3]} 50. Kg4 {[%clk 0:00:28.4]} 50... Bd7
{[%clk 0:00:13.2]} 51. h5 {[%clk 0:00:28.7]} 51... Bxf5+ {[%clk 0:00:14.1]} 52.
Kxf5 {[%clk 0:00:28.6]} 52... h6 {[%clk 0:00:14.3]} 53. Ke4 {[%clk 0:00:28.4]}
53... Bg5 {[%clk 0:00:14.1]} 0-1

[Event "Early-Titled-Tuesday-Blitz-February-06-2024"]
[Site "Chess.com"]
[Date "2024.02.06"]
[Round "10"]
[White "lluiss"]
[Black "Nick12772"]
[Result "0-1"]
[WhiteElo "2144"]
[BlackElo "2373"]
[TimeControl "180+1"]
[EndTime "9:55:40 PST"]
[Termination "Nick12772 won by resignation"]

1. e4 {[%clk 0:03:00.9]} 1... e6 {[%clk 0:03:00]} 2. d4 {[%clk 0:02:59.4]} 2...
d5 {[%clk 0:03:00.9]} 3. e5 {[%clk 0:02:58.4]} 3... c5 {[%clk 0:03:00.5]} 4. Nf3
{[%clk 0:02:58.6]} 4... cxd4 {[%clk 0:03:00.4]} 5. Nxd4 {[%clk 0:02:57.2]} 5...
Nc6 {[%clk 0:03:00.5]} 6. Nf3 {[%clk 0:02:57.1]} 6... Nge7 {[%clk 0:02:58.9]} 7.
Bd3 {[%clk 0:02:55.4]} 7... Ng6 {[%clk 0:02:58.3]} 8. Qe2 {[%clk 0:02:53.5]}
8... Qc7 {[%clk 0:02:57.1]} 9. Bxg6 {[%clk 0:02:52.2]} 9... hxg6 {[%clk
0:02:58]} 10. O-O {[%clk 0:02:50.8]} 10... Bc5 {[%clk 0:02:49]} 11. c3 {[%clk
0:02:46.3]} 11... a5 {[%clk 0:02:48.6]} 12. Re1 {[%clk 0:02:25.4]} 12... Ba7
{[%clk 0:02:42.2]} 13. Bf4 {[%clk 0:02:19.8]} 13... Bd7 {[%clk 0:02:35.6]} 14.
Nbd2 {[%clk 0:02:19.4]} 14... Ne7 {[%clk 0:02:26.9]} 15. Nb3 {[%clk 0:02:15.2]}
15... Nf5 {[%clk 0:02:24.8]} 16. Nbd4 {[%clk 0:02:13.4]} 16... Bc6 {[%clk
0:02:12.7]} 17. Red1 {[%clk 0:01:53.6]} 17... a4 {[%clk 0:02:12]} 18. Nxf5
{[%clk 0:01:46.2]} 18... gxf5 {[%clk 0:02:11]} 19. Nd4 {[%clk 0:01:46.8]} 19...
Qe7 {[%clk 0:02:00]} 20. Nb5 {[%clk 0:01:19.7]} 20... O-O {[%clk 0:01:11.3]} 21.
Nxa7 {[%clk 0:01:08.3]} 21... Rxa7 {[%clk 0:01:12.2]} 22. Qe3 {[%clk 0:01:07.8]}
22... Raa8 {[%clk 0:01:10.5]} 23. Bg5 {[%clk 0:01:07.3]} 23... Qc7 {[%clk
0:01:09.1]} 24. Qg3 {[%clk 0:01:02.2]} 24... f6 {[%clk 0:01:00.3]} 25. Bxf6
{[%clk 0:00:59.6]} 25... a3 {[%clk 0:00:49.7]} 26. b3 {[%clk 0:00:47.6]} 26...
Rf7 {[%clk 0:00:43.8]} 27. Bg5 {[%clk 0:00:45.4]} 27... Rc8 {[%clk 0:00:42]} 28.
Be3 {[%clk 0:00:44]} 28... Bb5 {[%clk 0:00:40.1]} 29. Bd4 {[%clk 0:00:43.3]}
29... f4 {[%clk 0:00:35.9]} 30. Qf3 {[%clk 0:00:39.1]} 30... Rf5 {[%clk
0:00:28.5]} 31. Rac1 {[%clk 0:00:34]} 31... Be8 {[%clk 0:00:28.6]} 32. Rd2
{[%clk 0:00:14.9]} 32... Bh5 {[%clk 0:00:28.4]} 33. Qh3 {[%clk 0:00:15]} 33...
f3 {[%clk 0:00:22.6]} 34. g4 {[%clk 0:00:14.3]} 34... Rg5 {[%clk 0:00:20.7]} 35.
Qxh5 {[%clk 0:00:10.4]} 35... Rxh5 {[%clk 0:00:20.5]} 36. gxh5 {[%clk
0:00:10.7]} 36... Qf7 {[%clk 0:00:21.2]} 37. Kh1 {[%clk 0:00:06.9]} 37... Qxh5
{[%clk 0:00:20]} 38. Rg1 {[%clk 0:00:07.5]} 38... Rf8 {[%clk 0:00:17.4]} 39. Rg3
{[%clk 0:00:07.4]} 39... Rf5 {[%clk 0:00:17.2]} 40. Rd1 {[%clk 0:00:06.8]} 40...
Rg5 {[%clk 0:00:17.6]} 41. Rdg1 {[%clk 0:00:06.6]} 41... Rxg3 {[%clk 0:00:18.2]}
42. Rxg3 {[%clk 0:00:07.4]} 42... Qf5 {[%clk 0:00:18.8]} 43. h3 {[%clk
0:00:07.2]} 43... Qb1+ {[%clk 0:00:18.9]} 44. Kh2 {[%clk 0:00:07.5]} 44... Qxa2
{[%clk 0:00:19.4]} 45. Rxf3 {[%clk 0:00:07.8]} 45... Qxb3 {[%clk 0:00:19.7]} 46.
Kg3 {[%clk 0:00:06]} 46... a2 {[%clk 0:00:20.1]} 47. c4 {[%clk 0:00:06.2]} 47...
Qxc4 {[%clk 0:00:19.7]} 48. Ba1 {[%clk 0:00:06.1]} 48... Qc1 {[%clk 0:00:18.2]}
0-1

[Event "Early-Titled-Tuesday-Blitz-February-06-2024"]
[Site "Chess.com"]
[Date "2024.02.06"]
[Round "10"]
[White "ValiantCeleb"]
[Black "igorknyazev"]
[Result "0-1"]
[WhiteElo "2196"]
[BlackElo "2150"]
[TimeControl "180+1"]
[EndTime "9:55:42 PST"]
[Termination "igorknyazev won on time"]

1. d4 {[%clk 0:03:00.9]} 1... Nf6 {[%clk 0:02:54.8]} 2. Bf4 {[%clk 0:03:00]}
2... c5 {[%clk 0:02:52.8]} 3. e3 {[%clk 0:02:58.6]} 3... e6 {[%clk 0:02:49.9]}
4. Nd2 {[%clk 0:02:52.8]} 4... Qb6 {[%clk 0:02:49]} 5. Nc4 {[%clk 0:02:45.4]}
5... Qc6 {[%clk 0:02:41.2]} 6. Nf3 {[%clk 0:02:36.2]} 6... d5 {[%clk 0:02:35.2]}
7. Nfe5 {[%clk 0:02:14.2]} 7... Qa4 {[%clk 0:02:27.2]} 8. Na3 {[%clk 0:01:58.6]}
8... Nbd7 {[%clk 0:02:14.8]} 9. Bb5 {[%clk 0:01:49.3]} 9... Qb4+ {[%clk
0:02:07]} 10. c3 {[%clk 0:01:10.4]} 10... Qxb2 {[%clk 0:02:04.6]} 11. Bxd7+
{[%clk 0:01:10.7]} 11... Bxd7 {[%clk 0:02:00.2]} 12. Qc1 {[%clk 0:00:31.7]}
12... Qxc1+ {[%clk 0:01:54.9]} 13. Rxc1 {[%clk 0:00:32.6]} 13... cxd4 {[%clk
0:01:52.6]} 14. Nb1 {[%clk 0:00:18]} 14... dxe3 {[%clk 0:01:47.7]} 15. Bxe3
{[%clk 0:00:16.1]} 15... Bd6 {[%clk 0:01:44.6]} 16. Nxd7 {[%clk 0:00:14.7]}
16... Nxd7 {[%clk 0:01:42.8]} 17. O-O {[%clk 0:00:15.4]} 17... O-O {[%clk
0:01:41.2]} 18. c4 {[%clk 0:00:15.7]} 18... Nf6 {[%clk 0:01:37.2]} 19. c5 {[%clk
0:00:14.9]} 19... Bc7 {[%clk 0:01:35.7]} 20. Nc3 {[%clk 0:00:13.4]} 20... e5
{[%clk 0:01:34.4]} 21. Nb5 {[%clk 0:00:13.3]} 21... Rfc8 {[%clk 0:01:31.9]} 22.
Rfd1 {[%clk 0:00:10.7]} 22... a6 {[%clk 0:01:27.5]} 23. Nxc7 {[%clk 0:00:09.1]}
23... Rxc7 {[%clk 0:01:25.9]} 24. f4 {[%clk 0:00:08.6]} 24... Ng4 {[%clk
0:01:20.2]} 25. Bd2 {[%clk 0:00:06.6]} 25... e4 {[%clk 0:01:16]} 26. h3 {[%clk
0:00:06.3]} 26... Nf6 {[%clk 0:01:14.1]} 27. Be3 {[%clk 0:00:04.3]} 27... Rac8
{[%clk 0:01:10.7]} 28. g4 {[%clk 0:00:04]} 28... h6 {[%clk 0:01:08]} 29. g5
{[%clk 0:00:03.2]} 29... hxg5 {[%clk 0:01:06.8]} 30. fxg5 {[%clk 0:00:04.1]}
30... Nh7 {[%clk 0:00:56.5]} 31. Rxd5 {[%clk 0:00:04.3]} 31... b6 {[%clk
0:00:53.7]} 32. c6 {[%clk 0:00:02.1]} 32... Rxc6 {[%clk 0:00:49.5]} 33. Rxc6
{[%clk 0:00:01.7]} 33... Rxc6 {[%clk 0:00:48.2]} 34. Re5 {[%clk 0:00:01.7]}
34... f5 {[%clk 0:00:43.3]} 35. Re8+ {[%clk 0:00:01.8]} 35... Kf7 {[%clk
0:00:42.6]} 36. Ra8 {[%clk 0:00:01.7]} 36... b5 {[%clk 0:00:40.7]} 37. h4 {[%clk
0:00:02.1]} 37... Kg6 {[%clk 0:00:38.9]} 38. Ra7 {[%clk 0:00:01.7]} 38... Nf8
{[%clk 0:00:35.3]} 39. Bd4 {[%clk 0:00:01.9]} 39... Ne6 {[%clk 0:00:35.6]} 40.
Be5 {[%clk 0:00:02.1]} 40... e3 {[%clk 0:00:32.3]} 41. Kf1 {[%clk 0:00:02.1]}
41... f4 {[%clk 0:00:30.8]} 0-1

[Event "Early-Titled-Tuesday-Blitz-February-06-2024"]
[Site "Chess.com"]
[Date "2024.02.06"]
[Round "10"]
[White "N_I_Chess"]
[Black "hmatyi07"]
[Result "0-1"]
[WhiteElo "2327"]
[BlackElo "2223"]
[TimeControl "180+1"]
[EndTime "9:55:43 PST"]
[Termination "hmatyi07 won by checkmate"]

1. d4 {[%clk 0:02:31.1]} 1... Nf6 {[%clk 0:02:58.8]} 2. c4 {[%clk 0:02:31.2]}
2... e6 {[%clk 0:02:58.9]} 3. Nc3 {[%clk 0:02:31.5]} 3... Bb4 {[%clk 0:02:56.9]}
4. Nf3 {[%clk 0:02:32]} 4... b6 {[%clk 0:02:55]} 5. e3 {[%clk 0:02:32.3]} 5...
Bb7 {[%clk 0:02:54.5]} 6. Bd3 {[%clk 0:02:30.7]} 6... O-O {[%clk 0:02:54]} 7.
Bd2 {[%clk 0:02:31]} 7... Bxc3 {[%clk 0:02:51.5]} 8. Bxc3 {[%clk 0:02:30.4]}
8... Ne4 {[%clk 0:02:51.8]} 9. Bxe4 {[%clk 0:02:24.7]} 9... Bxe4 {[%clk
0:02:51.5]} 10. Nd2 {[%clk 0:02:23.4]} 10... Bd3 {[%clk 0:02:21.7]} 11. d5
{[%clk 0:01:51.3]} 11... exd5 {[%clk 0:02:05.8]} 12. Qg4 {[%clk 0:01:45.7]}
12... Bg6 {[%clk 0:02:00.3]} 13. cxd5 {[%clk 0:01:45]} 13... d6 {[%clk
0:01:49.6]} 14. h4 {[%clk 0:01:39.6]} 14... h5 {[%clk 0:01:45.5]} 15. Qd4 {[%clk
0:01:37.1]} 15... f6 {[%clk 0:01:42.1]} 16. g4 {[%clk 0:01:26]} 16... Nd7 {[%clk
0:01:37.7]} 17. f4 {[%clk 0:01:12.1]} 17... Qe7 {[%clk 0:01:29]} 18. Rg1 {[%clk
0:00:41.2]} 18... Nc5 {[%clk 0:01:28.6]} 19. g5 {[%clk 0:00:32.4]} 19... Nd3+
{[%clk 0:01:24.4]} 20. Kf1 {[%clk 0:00:29.6]} 20... Qd7 {[%clk 0:01:07.7]} 21.
Rg3 {[%clk 0:00:26.7]} 21... Rae8 {[%clk 0:01:01.4]} 22. Kg1 {[%clk 0:00:18.3]}
22... c5 {[%clk 0:00:49.9]} 23. dxc6 {[%clk 0:00:17.9]} 23... Qxc6 {[%clk
0:00:50.2]} 24. Kh2 {[%clk 0:00:18]} 24... Nc5 {[%clk 0:00:43.1]} 25. gxf6
{[%clk 0:00:12.7]} 25... Rxf6 {[%clk 0:00:42.5]} 26. Rag1 {[%clk 0:00:11.9]}
26... d5 {[%clk 0:00:27.4]} 27. f5 {[%clk 0:00:09.8]} 27... Ne4 {[%clk
0:00:16.2]} 28. Nxe4 {[%clk 0:00:08.8]} 28... Rxe4 {[%clk 0:00:15.5]} 29. Qd2
{[%clk 0:00:04.8]} 29... Rxh4+ {[%clk 0:00:15.5]} 30. Kg2 {[%clk 0:00:03.6]}
30... d4+ {[%clk 0:00:15.2]} 31. Kf1 {[%clk 0:00:03.8]} 31... dxc3 {[%clk
0:00:14.8]} 32. Qd8+ {[%clk 0:00:04.5]} 32... Kh7 {[%clk 0:00:13.1]} 33. Rxg6
{[%clk 0:00:03.8]} 33... Qf3+ {[%clk 0:00:10.9]} 34. Ke1 {[%clk 0:00:02.9]}
34... Qxe3+ {[%clk 0:00:11.4]} 35. Kd1 {[%clk 0:00:03.6]} 35... Qf3+ {[%clk
0:00:10.6]} 36. Kc2 {[%clk 0:00:03.2]} 36... Qxf5+ {[%clk 0:00:11]} 37. Kxc3
{[%clk 0:00:03.1]} 37... Rxg6 {[%clk 0:00:11.5]} 38. Rxg6 {[%clk 0:00:02.2]}
38... Rh3+ {[%clk 0:00:11.4]} 39. Rg3 {[%clk 0:00:01.9]} 39... Rxg3+ {[%clk
0:00:11.6]} 40. Kb4 {[%clk 0:00:02.6]} 40... Qa5+ {[%clk 0:00:11.6]} 41. Kc4
{[%clk 0:00:02.7]} 41... Qc5# {[%clk 0:00:12.3]} 0-1

[Event "Early-Titled-Tuesday-Blitz-February-06-2024"]
[Site "Chess.com"]
[Date "2024.02.06"]
[Round "10"]
[White "Yan_Dyomin2010"]
[Black "smotherhubbard"]
[Result "1-0"]
[WhiteElo "2595"]
[BlackElo "2382"]
[TimeControl "180+1"]
[EndTime "9:55:46 PST"]
[Termination "Yan_Dyomin2010 won by resignation"]

1. e4 {[%clk 0:02:54.1]} 1... e6 {[%clk 0:02:58.7]} 2. d4 {[%clk 0:02:53.2]}
2... d5 {[%clk 0:02:58.8]} 3. e5 {[%clk 0:02:52.3]} 3... c5 {[%clk 0:02:58.2]}
4. c3 {[%clk 0:02:53]} 4... Nc6 {[%clk 0:02:58.6]} 5. Nf3 {[%clk 0:02:53.3]}
5... Bd7 {[%clk 0:02:59]} 6. Be2 {[%clk 0:02:52.5]} 6... f6 {[%clk 0:02:58.4]}
7. O-O {[%clk 0:02:51.7]} 7... fxe5 {[%clk 0:02:57.1]} 8. Nxe5 {[%clk
0:02:52.2]} 8... Nxe5 {[%clk 0:02:56.6]} 9. dxe5 {[%clk 0:02:53.1]} 9... Ne7
{[%clk 0:02:56.5]} 10. Bg5 {[%clk 0:02:50.3]} 10... Qc7 {[%clk 0:02:55.9]} 11.
Re1 {[%clk 0:02:48.1]} 11... Nc6 {[%clk 0:02:42.5]} 12. Bf1 {[%clk 0:02:12.9]}
12... g6 {[%clk 0:01:59]} 13. Bf6 {[%clk 0:02:11.1]} 13... Rg8 {[%clk
0:01:59.3]} 14. Nd2 {[%clk 0:02:08.9]} 14... Bg7 {[%clk 0:01:58.7]} 15. Qg4
{[%clk 0:01:54.7]} 15... Nxe5 {[%clk 0:01:42.4]} 16. Bxe5 {[%clk 0:01:36.3]}
16... Bxe5 {[%clk 0:01:43.3]} 17. Nf3 {[%clk 0:01:36.1]} 17... Bd6 {[%clk
0:01:41.8]} 18. Rxe6+ {[%clk 0:01:25.2]} 18... Kf7 {[%clk 0:01:03.1]} 19. Ng5+
{[%clk 0:01:16.6]} 19... Kg7 {[%clk 0:01:03.1]} 20. Bd3 {[%clk 0:00:42.6]} 20...
Rae8 {[%clk 0:00:36.2]} 21. Rae1 {[%clk 0:00:39.5]} 21... Rxe6 {[%clk 0:00:30]}
22. Nxe6+ {[%clk 0:00:36.7]} 22... Bxe6 {[%clk 0:00:29.9]} 23. Qxe6 {[%clk
0:00:37.6]} 23... Bxh2+ {[%clk 0:00:29.7]} 24. Kh1 {[%clk 0:00:37]} 24... Bd6
{[%clk 0:00:27.7]} 25. Qxd5 {[%clk 0:00:35.2]} 25... Rd8 {[%clk 0:00:27]} 26.
Qe6 {[%clk 0:00:32]} 26... Qd7 {[%clk 0:00:27.1]} 27. Qe4 {[%clk 0:00:31.7]}
27... Rf8 {[%clk 0:00:21.3]} 28. Kg1 {[%clk 0:00:30.1]} 28... Rf4 {[%clk
0:00:20.2]} 29. Qe3 {[%clk 0:00:30]} 29... Qc6 {[%clk 0:00:18.8]} 30. g3 {[%clk
0:00:28.7]} 30... Rf7 {[%clk 0:00:17.2]} 31. Be4 {[%clk 0:00:28.1]} 31... Qd7
{[%clk 0:00:16.9]} 32. Bd5 {[%clk 0:00:28]} 32... Re7 {[%clk 0:00:16.5]} 33. Be4
{[%clk 0:00:23.8]} 33... Qh3 {[%clk 0:00:14.8]} 34. Rd1 {[%clk 0:00:22.6]} 34...
Bc7 {[%clk 0:00:13.2]} 35. Qxc5 {[%clk 0:00:21.1]} 35... Bb6 {[%clk 0:00:11.8]}
36. Qxe7+ {[%clk 0:00:20.7]} 36... Kh6 {[%clk 0:00:11.3]} 37. Rd4 {[%clk
0:00:18.5]} 37... Bxd4 {[%clk 0:00:09.4]} 38. cxd4 {[%clk 0:00:19.4]} 38... Qg4
{[%clk 0:00:09.5]} 39. Qh4+ {[%clk 0:00:20.3]} 39... Qxh4 {[%clk 0:00:09.4]} 40.
gxh4 {[%clk 0:00:21.2]} 40... Kg7 {[%clk 0:00:10]} 41. d5 {[%clk 0:00:22.1]}
41... Kf6 {[%clk 0:00:10.5]} 42. d6 {[%clk 0:00:22]} 42... Ke6 {[%clk
0:00:10.7]} 43. Bxb7 {[%clk 0:00:22.9]} 43... Kxd6 {[%clk 0:00:10.8]} 44. Kg2
{[%clk 0:00:22.9]} 44... Kc5 {[%clk 0:00:11.7]} 45. Kg3 {[%clk 0:00:23.8]} 45...
Kd4 {[%clk 0:00:11.7]} 46. Kg4 {[%clk 0:00:24.7]} 46... Kd3 {[%clk 0:00:11.5]}
47. Kg5 {[%clk 0:00:25.6]} 47... Kc2 {[%clk 0:00:11.2]} 48. Be4+ {[%clk
0:00:26.2]} 48... Kxb2 {[%clk 0:00:11.2]} 49. a4 {[%clk 0:00:25.3]} 49... Kb3
{[%clk 0:00:09.6]} 50. a5 {[%clk 0:00:26.2]} 50... a6 {[%clk 0:00:09]} 51. Bb7
{[%clk 0:00:26]} 51... Kb4 {[%clk 0:00:09.3]} 52. Bxa6 {[%clk 0:00:26.9]} 52...
Kxa5 {[%clk 0:00:10]} 53. Bd3 {[%clk 0:00:27.8]} 53... Kb4 {[%clk 0:00:10.2]}
54. Bxg6 {[%clk 0:00:28.7]} 54... Kc3 {[%clk 0:00:07.9]} 55. Bxh7 {[%clk
0:00:28.4]} 55... Kd4 {[%clk 0:00:07.8]} 56. Bf5 {[%clk 0:00:29.3]} 56... Kc3
{[%clk 0:00:06.9]} 57. Kf6 {[%clk 0:00:29.5]} 1-0